bitfinex-derivatives/quotes_BNBF0:USTF0_20250715
["timestamp","ask_amount","ask_price","bid_price","bid_amount"]
[1752562922571,0.98535884,682.63,681.93,0.98324214]
[1752562924075,0.98535884,682.64,681.93,0.98324214]
[1752562924277,0.98535884,682.62,681.94,0.98324214]
[1752562925172,0.98535884,682.6,681.93,0.98324214]
[1752562925376,0.98535884,682.56,681.89,0.98324214]
[1752562925577,0.98535884,682.56,681.88,0.98324214]
[1752562926081,0.98535884,682.56,681.89,0.98324214]
[1752562926479,0.98535884,682.57,681.89,0.98324214]
[1752562926778,0.98535884,682.56,681.9,0.98324214]
[1752562927183,0.98535884,682.57,681.89,0.98324214]
[1752562927684,0.98535884,682.58,681.89,0.98324214]
[1752562928186,0.98535884,682.57,681.89,0.98324214]
[1752562928884,0.98535884,682.58,681.89,0.98324214]
[1752562929180,0.98535884,682.57,681.89,0.98324214]
[1752562930182,0.98535884,682.57,681.9,0.98324214]
[1752562930687,0.98535884,682.65,681.84,0.98324214]
[1752562931882,0.98535884,682.64,681.85,0.98324214]
[1752562933086,0.98535884,682.63,681.86,0.98324214]
[1752562933988,0.98535884,682.66,681.89,0.98324214]
[1752562934288,0.98535884,682.56,681.96,0.98324214]
[1752562934892,0.98535884,682.54,681.97,0.98324214]
[1752562935090,0.98535884,682.54,681.98,0.98324214]
[1752562936486,0.98535884,682.55,681.97,0.98324214]
[1752562936791,0.98535884,682.54,681.97,0.98324214]
[1752562938192,0.98535884,682.54,681.98,0.98324214]
[1752562938386,0.98535884,682.54,681.05,3.2853785]
[1752562938387,0.98535884,682.55,681.97,0.98324214]
[1752562940592,0.98535884,682.54,681.98,0.98324214]
[1752562941793,0.98535884,682.56,681.96,0.98324214]
[1752562944398,0.98535884,682.57,681.95,0.98324214]
[1752562946901,0.98535884,682.56,681.96,0.98324214]
[1752562949403,0.98535884,682.57,681.95,0.98324214]
[1752562950100,0.98535884,682.56,681.96,0.98324214]
[1752562951105,0.98535884,682.57,681.95,0.98324214]
[1752562954407,0.98535884,682.6,681.99,0.98324214]
[1752562955003,0.25497774,682.99,681.99,0.98324214]
[1752562955004,0.98535884,682.59,681.99,0.98324214]
[1752562955209,0.98535884,682.6,681.99,0.98324214]
[1752562956111,0.98535884,682.61,681.98,0.98324214]
[1752562957407,0.98535884,682.61,681.97,0.98324214]
[1752562957811,0.98535884,682.66,681.95,0.98324214]
[1752562960209,0.98535884,682.65,681.95,0.98324214]
[1752562961109,0.98535884,682.64,681.95,0.98324214]
[1752562961513,0.98535884,682.65,681.95,0.98324214]
[1752562962109,0.98535884,682.64,681.96,0.98324214]
[1752562962411,0.98535884,682.65,681.95,0.98324214]
[1752562963110,0.98535884,682.65,681.96,0.98324214]
[1752562963414,0.98535884,682.82,681.83,0.98324214]
[1752562963615,0.98535884,682.82,681.84,0.98324214]
[1752562963813,0.98535884,682.72,681.73,0.98324214]
[1752562964218,0.98535884,682.71,681.74,0.98324214]
[1752562964518,0.98535884,682.69,681.75,0.98324214]
[1752562966218,0.98535884,682.69,681.76,0.98324214]
[1752562966415,0.98535884,682.68,681.76,0.98324214]
[1752562966719,0.98535884,682.68,681.48,1.3141514]
[1752562966720,0.98535884,682.67,681.77,0.98324214]
[1752562967120,0.98535884,682.66,681.76,0.98324214]
[1752562969421,0.98535884,682.63,681.78,0.98324214]
[1752562971022,0.98535884,682.62,681.78,0.98324214]
[1752562971221,0.98535884,682.59,681.8,0.98324214]
[1752562971522,0.98535884,682.57,681.81,0.98324214]
[1752562971822,0.98535884,682.55,681.83,0.98324214]
[1752562972523,0.98535884,682.56,681.82,0.98324214]
[1752562973123,0.98535884,682.56,681.83,0.98324214]
[1752562973418,0.98535884,682.56,681.82,0.98324214]
[1752562973618,0.98535884,682.52,681.85,0.98324214]
[1752562973823,0.98535884,682.53,681.85,0.98324214]
[1752562974326,0.98535884,682.52,681.85,0.98324214]
[1752562975923,0.98535884,682.53,681.85,0.98324214]
[1752562976122,0.98535884,682.53,681.84,0.98324214]
[1752562976322,0.98535884,682.53,681.85,0.98324214]
[1752562977125,0.98535884,682.53,681.84,0.98324214]
[1752562977523,0.98535884,682.53,681.85,0.98324214]
[1752562978027,0.98535884,682.53,681.84,0.98324214]
[1752562978527,0.98535884,682.54,681.86,0.98324214]
[1752562979129,0.98535884,682.55,681.86,0.98324214]
[1752562980132,0.98535884,682.54,681.86,0.98324214]
[1752562980427,0.98535884,682.55,681.86,0.98324214]
[1752562982433,0.98535884,682.54,681.86,0.98324214]
[1752562983640,0.98535884,682.53,681.87,0.98324214]
[1752562984841,0.98729853,682.53,681.87,0.9849683]
[1752562985638,0.98729853,682.51,681.88,0.9849683]
[1752562985837,0.98729853,682.5,681.89,0.9849683]
[1752562987741,0.98729853,682.49,681.9,0.9849683]
[1752562989446,0.98729853,682.51,681.88,0.9849683]
[1752562989646,0.98729853,682.53,681.87,0.9849683]
[1752562990341,0.98729853,682.52,681.87,0.9849683]
[1752562991141,0.98729853,682.53,681.87,0.9849683]
[1752562991742,1.3137475,682.71,681.69,1.3141514]
[1752562991940,0.98721669,682.52,681.87,0.984833]
[1752562992144,0.98721669,682.53,681.87,0.984833]
[1752562992345,0.98721669,682.5,681.85,0.984833]
[1752562992542,0.98721669,682.48,681.82,0.984833]
[1752562994442,0.98721669,682.49,681.82,0.984833]
[1752562995751,0.98721669,682.47,681.83,0.984833]
[1752562997151,0.98721669,682.44,681.84,0.984833]
[1752562997348,0.98721669,682.45,681.84,0.984833]
[1752563001152,0.98721669,682.44,681.85,0.984833]
[1752563001356,0.98721669,682.45,681.84,0.984833]
[1752563001752,0.98721669,682.46,681.85,0.984833]
[1752563002153,0.98721669,682.47,681.84,0.984833]
[1752563002356,0.98721669,682.49,681.86,0.984833]
[1752563002658,0.98721669,682.51,681.85,0.984833]
[1752563002853,0.25497774,682.99,681.38,0.25496187]
[1752563002854,0.98721669,682.5,681.86,0.984833]
[1752563003953,0.98721669,682.51,681.86,0.984833]
[1752563004458,0.98721669,682.52,681.86,0.984833]
[1752563006361,0.98721669,682.53,681.88,0.984833]
[1752563006657,0.98721669,682.57,681.93,0.984833]
[1752563008057,0.98721669,682.57,681.94,0.984833]
[1752563009358,0.98721669,682.56,681.95,0.984833]
[1752563010358,0.98721669,682.56,681.94,0.984833]
[1752563011164,0.98721669,682.56,681.95,0.984833]
[1752563012061,0.98721669,682.57,681.94,0.984833]
[1752563012461,0.98721669,682.56,681.94,0.984833]
[1752563014161,0.98721669,682.56,681.93,0.984833]
[1752563014360,0.98721669,682.56,681.94,0.984833]
[1752563014560,0.98721669,682.55,681.92,0.984833]
[1752563014762,0.98721669,682.61,681.88,0.984833]
[1752563014965,2.09696719,682.6,681.88,0.984833]
[1752563015165,1.1097505,682.59,681.88,0.984833]
[1752563015361,2.09696719,682.59,681.89,0.984833]
[1752563015561,2.09696719,682.58,681.88,0.984833]
[1752563015764,1.1097505,682.57,681.88,0.984833]
[1752563015965,0.98721669,682.54,681.84,0.984833]
[1752563016162,0.98721669,682.51,681.82,0.984833]
[1752563016365,0.98721669,682.52,681.82,0.984833]
[1752563016865,0.98721669,682.51,681.81,0.984833]
[1752563017263,0.98721669,682.47,681.78,0.984833]
[1752563017562,0.98721669,682.51,681.76,0.984833]
[1752563017968,0.98721669,682.49,681.75,0.984833]
[1752563019165,0.98721669,682.48,681.75,0.984833]
[1752563019465,0.98721669,682.49,681.75,0.984833]
[1752563021665,0.98721669,682.48,681.76,0.984833]
[1752563021869,0.98721669,682.47,681.76,0.984833]
[1752563022264,0.98721669,682.47,681.77,0.984833]
[1752563022468,0.98721669,682.47,681.76,0.984833]
[1752563023066,0.98721669,682.47,681.77,0.984833]
[1752563023268,0.98721669,682.47,681.76,0.984833]
[1752563025966,0.98721669,682.39,681.82,0.984833]
[1752563026468,0.98721669,682.38,681.83,0.984833]
[1752563026770,0.98721669,682.49,681.76,0.984833]
[1752563027268,0.98721669,682.49,681.84,0.984833]
[1752563027566,0.98721669,682.58,681.84,0.984833]
[1752563031274,0.98721669,682.57,681.84,0.984833]
[1752563033173,0.98721669,682.57,681.83,0.984833]
[1752563033879,0.98721669,682.57,681.84,0.984833]
[1752563034174,0.98721669,682.57,681.83,0.984833]
[1752563034378,0.98721669,682.59,681.83,0.984833]
[1752563036480,0.98721669,682.54,681.86,0.984833]
[1752563039382,0.98721669,682.53,681.86,0.984833]
[1752563040677,0.98711249,682.53,681.86,0.98439007]
[1752563040878,0.98711249,682.52,681.87,0.98439007]
[1752563041080,0.98711249,682.53,681.87,0.98439007]
[1752563041881,0.98711249,682.53,681.88,0.98439007]
[1752563042682,0.98711249,682.53,681.87,0.98439007]
[1752563042982,0.98711249,682.52,681.88,0.98439007]
[1752563043482,0.98711249,682.53,681.88,0.98439007]
[1752563044279,0.98711249,682.5,681.89,0.98439007]
[1752563044476,0.98711249,682.51,681.89,0.98439007]
[1752563044681,0.98711249,682.54,681.92,0.98439007]
[1752563046382,0.98711249,682.53,681.93,0.98439007]
[1752563047383,0.98711249,682.53,681.92,0.98439007]
[1752563047581,0.98711249,682.53,681.93,0.98439007]
[1752563049899,0.98711249,682.54,681.93,0.98439007]
[1752563050490,0.98711249,682.53,681.93,0.98439007]
[1752563050693,0.98711249,682.54,681.93,0.98439007]
[1752563051495,1.3137475,682.7,681.76,1.3141514]
[1752563051793,0.25497774,682.99,681.38,0.25496187]
[1752563052892,1.11068,682.98,681.38,0.25496187]
[1752563053100,1.11068,682.97,681.38,0.25496187]
[1752563053291,1.11068,682.96,681.38,0.25496187]
[1752563053496,1.11068,682.95,681.38,0.25496187]
[1752563053696,1.11068,682.94,681.38,0.25496187]
[1752563053896,1.11068,682.93,681.38,0.25496187]
[1752563054094,1.11068,682.92,681.38,0.25496187]
[1752563054296,1.11068,682.91,681.38,0.25496187]
[1752563054495,0.98688775,682.57,681.91,0.9840615]
[1752563054795,0.98688775,682.51,681.85,0.9840615]
[1752563054997,0.98696525,682.51,681.85,0.98429383]
[1752563055496,0.98696525,682.47,681.88,0.98429383]
[1752563055698,0.98696525,682.37,681.81,0.98429383]
[1752563056298,0.98696525,682.38,681.81,0.98429383]
[1752563056798,0.98696525,682.4,681.79,0.98429383]
[1752563057396,0.98696525,682.41,681.79,0.98429383]
[1752563058398,0.98696525,682.43,681.77,0.98429383]
[1752563058597,0.98696525,682.44,681.77,0.98429383]
[1752563058803,0.98696525,682.43,681.76,0.98429383]
[1752563059201,0.98696525,682.44,681.76,0.98429383]
[1752563059399,0.98696525,682.43,681.76,0.98429383]
[1752563059703,0.98696525,682.43,681.75,0.98429383]
[1752563059906,0.98696525,682.41,681.74,0.98429383]
[1752563060099,0.98696525,682.38,681.7,0.98429383]
[1752563061100,0.98696525,682.38,681.69,0.98429383]
[1752563062104,0.98696525,682.39,681.69,0.98429383]
[1752563063102,0.98696525,682.39,681.68,0.98429383]
[1752563063605,0.98696525,682.37,681.69,0.98429383]
[1752563063801,0.98696525,682.39,681.68,0.98429383]
[1752563064502,0.98696525,682.4,681.68,0.98429383]
[1752563065205,0.98696525,682.4,681.67,0.98429383]
[1752563065707,0.98696525,682.39,681.68,0.98429383]
[1752563066406,0.98696525,682.38,681.68,0.98429383]
[1752563067208,0.98696525,682.39,681.68,0.98429383]
[1752563068705,0.98696525,682.38,681.68,0.98429383]
[1752563069010,0.98603898,682.38,681.68,0.98383488]
[1752563069706,0.98603898,682.53,681.58,0.98383488]
[1752563070410,0.98603898,682.54,681.58,0.98383488]
[1752563070912,0.98603898,682.62,681.52,0.98383488]
[1752563071111,1.1091968,682.61,681.52,0.98383488]
[1752563071408,0.98603898,682.56,681.46,0.98383488]
[1752563071607,0.98603898,682.57,681.47,0.98383488]
[1752563071806,1.1092341,682.56,681.47,0.98383488]
[1752563072210,1.1092341,682.56,681.46,0.98383488]
[1752563072409,0.98603898,682.53,681.43,0.98383488]
[1752563072713,1.1091039,682.52,681.43,0.98383488]
[1752563073117,1.1091039,682.52,681.42,0.98383488]
[1752563073315,1.1091039,682.51,681.42,0.98383488]
[1752563073515,1.1091039,682.5,681.42,0.98383488]
[1752563073713,0.98603898,682.54,681.42,0.98383488]
[1752563074016,1.1089747,682.53,681.42,0.98383488]
[1752563074417,2.09501368,682.53,681.42,0.98383488]
[1752563074614,1.1089747,682.52,681.42,0.98383488]
[1752563075320,1.1089747,682.51,681.42,0.98383488]
[1752563075618,1.1089747,682.5,681.42,0.98383488]
[1752563075817,0.98603898,682.53,681.42,0.98383488]
[1752563076014,0.98603898,682.54,681.43,0.98383488]
[1752563076215,1.1085978,682.53,681.42,0.98383488]
[1752563077115,1.1085978,682.53,681.41,0.98383488]
[1752563077415,0.98603898,682.47,681.46,0.98383488]
[1752563078222,0.98603898,682.4,681.51,0.98383488]
[1752563078518,0.98603898,682.31,681.57,0.98383488]
[1752563079117,0.98603898,682.34,681.6,0.98383488]
[1752563079420,0.98603898,682.4,681.65,0.98383488]
[1752563079617,0.98603898,682.39,681.65,0.98383488]
[1752563080321,0.98603898,682.4,681.65,0.98383488]
[1752563082519,0.98603898,682.4,681.64,0.98383488]
[1752563088030,0.98603898,682.39,681.65,0.98383488]
[1752563088231,0.98603898,682.38,681.65,0.98383488]
[1752563088428,0.98603898,682.34,681.68,0.98383488]
[1752563090426,2.22884108,682.59,681.38,0.25496187]
[1752563090427,0.98603898,682.33,681.66,0.98383488]
[1752563090931,0.98603898,682.32,681.66,0.98383488]
[1752563091431,0.98603898,682.32,681.67,0.98383488]
[1752563092732,0.98603898,682.31,681.67,0.98383488]
[1752563093329,0.98603898,682.36,681.64,0.98383488]
[1752563093534,0.98603898,682.36,681.56,0.98383488]
[1752563097034,0.98603898,682.38,681.56,0.98383488]
[1752563098837,0.98603898,682.37,681.56,0.98383488]
[1752563101737,0.98603898,682.33,681.59,0.98383488]
[1752563102342,0.98603898,682.34,681.58,0.98383488]
[1752563105342,0.98603898,682.33,681.59,0.98383488]
[1752563105538,0.98603898,682.34,681.58,0.98383488]
[1752563105744,0.98603898,682.35,681.58,0.98383488]
[1752563106040,0.98603898,682.33,681.59,0.98383488]
[1752563106344,0.98603898,682.37,681.63,0.98383488]
[1752563107246,0.98603898,682.37,681.64,0.98383488]
[1752563107946,0.98603898,682.38,681.64,0.98383488]
[1752563108248,0.98603898,682.36,681.65,0.98383488]
[1752563109343,0.98603898,682.35,681.66,0.98383488]
[1752563110349,0.98603898,682.35,681.67,0.98383488]
[1752563110557,0.98603898,682.34,681.66,0.98383488]
[1752563111151,0.98603898,682.34,681.67,0.98383488]
[1752563111546,1.3158503,682.5,681.67,0.98383488]
[1752563111547,0.98603898,682.33,681.67,0.98383488]
[1752563112352,0.98603898,682.32,681.68,0.98383488]
[1752563112749,0.98603898,682.31,681.69,0.98383488]
[1752563113148,0.98603898,682.3,681.69,0.98383488]
[1752563113352,0.98603898,682.3,681.7,0.98383488]
[1752563114350,0.98603898,682.29,681.71,0.98383488]
[1752563115154,0.98603898,682.27,681.72,0.98383488]
[1752563115355,0.98603898,682.27,681.73,0.98383488]
[1752563115955,0.98603898,682.26,681.74,0.98383488]
[1752563116352,0.98603898,682.27,681.73,0.98383488]
[1752563117657,0.98603898,682.3,681.71,0.98383488]
[1752563117852,0.25506558,682.59,681.72,0.98383488]
[1752563117853,0.98603898,682.29,681.72,0.98383488]
[1752563119157,0.98603898,682.28,681.72,0.98383488]
[1752563119967,0.98603898,682.28,681.73,0.98383488]
[1752563120757,0.98603898,682.29,681.72,0.98383488]
[1752563124055,0.98603898,682.29,681.73,0.98383488]
[1752563124258,0.98603898,682.28,681.73,0.98383488]
[1752563126257,0.98603898,682.28,681.74,0.98383488]
[1752563126959,0.98603898,682.27,681.74,0.98383488]
[1752563127664,0.98807008,682.24,681.76,0.98617324]
[1752563129165,0.98807008,682.3,681.72,0.98617324]
[1752563130961,0.98807008,682.32,681.7,0.98617324]
[1752563132067,0.98807008,682.33,681.7,0.98617324]
[1752563132269,0.98807008,682.34,681.69,0.98617324]
[1752563133166,0.98807008,682.34,681.7,0.98617324]
[1752563134066,0.98807008,682.33,681.7,0.98617324]
[1752563134767,0.98807008,682.3,681.73,0.98617324]
[1752563135471,0.98807008,682.32,681.74,0.98617324]
[1752563135670,0.98807008,682.36,681.78,0.98617324]
[1752563136172,0.98807008,682.35,681.78,0.98617324]
[1752563136467,0.98807008,682.36,681.78,0.98617324]
[1752563137167,0.98807008,682.35,681.78,0.98617324]
[1752563137371,0.98807008,682.36,681.78,0.98617324]
[1752563137572,0.98807008,682.32,681.81,0.98617324]
[1752563137968,1.3158503,682.48,681.81,0.98617324]
[1752563137969,0.98807008,682.33,681.81,0.98617324]
[1752563138168,0.98807008,682.32,681.81,0.98617324]
[1752563138472,1.3158503,682.48,681.81,0.98617324]
[1752563138473,0.98807008,682.33,681.81,0.98617324]
[1752563140370,0.98807008,682.33,681.8,0.98617324]
[1752563141074,0.98807008,682.32,681.8,0.98617324]
[1752563141370,0.98807008,682.33,681.8,0.98617324]
[1752563141672,0.98807008,682.32,681.8,0.98617324]
[1752563142174,0.98807008,682.29,681.82,0.98617324]
[1752563143372,1.3158503,682.42,681.7,1.312082]
[1752563143572,0.98795814,682.29,681.82,0.98569029]
[1752563144973,0.98795814,682.29,681.83,0.98569029]
[1752563145374,0.98795814,682.29,681.82,0.98569029]
[1752563145677,0.98795814,682.29,681.83,0.98569029]
[1752563146377,0.98795814,682.29,681.7,1.312082]
[1752563146378,0.98795814,682.29,681.82,0.98569029]
[1752563147074,0.98795814,682.29,681.83,0.98569029]
[1752563147278,0.98795814,682.28,681.83,0.98569029]
[1752563147477,0.98795814,682.27,681.84,0.98569029]
[1752563147975,0.98795814,682.3,681.82,0.98569029]
[1752563148579,0.98795814,682.36,681.78,0.98569029]
[1752563148879,0.98795814,682.34,681.74,0.98569029]
[1752563150478,0.98795814,682.34,681.73,0.98569029]
[1752563151281,0.98795814,682.35,681.73,0.98569029]
[1752563153181,0.98795814,682.35,681.72,0.98569029]
[1752563153378,0.98795814,682.35,681.73,0.98569029]
[1752563157286,0.98795814,682.34,681.73,0.98569029]
[1752563157882,0.98795814,682.27,681.77,0.98569029]
[1752563158088,0.98795814,682.26,681.76,0.98569029]
[1752563158283,1.3158503,682.39,681.62,1.312082]
[1752563158588,1.110654,682.38,681.48,1.968123]
[1752563158888,1.110666,682.37,681.48,1.968123]
[1752563159189,0.98805476,682.19,681.7,0.98591259]
[1752563159487,1.3174063,682.33,681.7,0.98591259]
[1752563159686,1.1107386,682.32,681.56,1.3145501]
[1752563159889,0.25505156,682.67,681.38,0.25496187]
[1752563159890,0.98815825,682.17,681.71,0.98601568]
[1752563160084,1.3174063,682.29,681.71,0.98601568]
[1752563160288,1.1108087,682.28,681.59,1.3145501]
[1752563160489,1.1108087,682.27,681.59,1.3145501]
[1752563160785,1.1108089,682.26,681.48,0.25509269]
[1752563160992,0.25505156,682.67,681.48,0.25509269]
[1752563161190,0.98816384,682.15,681.62,0.98612219]
[1752563161387,0.98816384,682.16,681.62,0.98612219]
[1752563161889,0.98816384,682.12,681.58,0.98612219]
[1752563162390,0.98816384,682.1,681.56,0.98612219]
[1752563163289,0.98816384,682.08,681.58,0.98612219]
[1752563163488,0.98816384,682.05,681.53,0.98612219]
[1752563164183,0.98816384,682.05,681.51,0.98612219]
[1752563164389,0.98816384,682.07,681.51,0.98612219]
[1752563165285,0.25505156,682.67,681.48,0.25509269]
[1752563165286,0.98816384,682.08,681.5,0.98612219]
[1752563166293,0.98816384,682.09,681.49,0.98612219]
[1752563167191,0.98816384,682.09,681.48,1.24121488]
[1752563167791,0.98816384,682.08,681.48,0.25509269]
[1752563168393,0.98816384,682.09,681.48,0.25509269]
[1752563169390,0.98816384,682.1,681.48,0.25509269]
[1752563169594,0.98816384,682.14,681.48,0.25509269]
[1752563169794,0.98816384,682.13,681.48,0.25509269]
[1752563170093,0.98816384,682.12,681.48,0.25509269]
[1752563170396,0.98816384,682.13,681.48,0.25509269]
[1752563170590,0.98816384,682.08,681.48,0.25509269]
[1752563170894,0.98816384,682.06,681.33,0.98612219]
[1752563171193,0.98816384,681.98,681.38,0.25519745]
[1752563171392,0.98816384,681.99,681.38,0.25519745]
[1752563172095,0.98816384,681.89,681.38,0.25519745]
[1752563173192,0.98816384,681.9,681.38,0.25519745]
[1752563173395,1.9763276,682.12,681.38,0.25519745]
[1752563173396,0.98816384,681.91,681.38,0.25519745]
[1752563174192,0.98816384,681.92,681.38,0.25519745]
[1752563175393,0.98816384,681.93,681.38,0.25519745]
[1752563176494,0.98816384,681.94,681.38,0.25519745]
[1752563176694,0.98816384,681.93,681.38,0.25519745]
[1752563177199,0.98816384,681.94,681.38,0.25519745]
[1752563177400,0.98816384,681.95,681.38,0.25519745]
[1752563178300,0.98816384,681.96,681.38,0.25519745]
[1752563179297,0.98816384,681.97,681.38,0.25519745]
[1752563180301,0.98816384,681.99,681.38,0.25519745]
[1752563181000,0.98816384,682.0,681.38,0.25519745]
[1752563181501,0.98816384,682.01,681.38,0.25519745]
[1752563181801,1.1042,682.0,681.38,0.25519745]
[1752563182699,0.98816384,682.01,681.38,0.25519745]
[1752563182901,0.98816384,682.06,680.98,0.98612219]
[1752563183097,1.1039409,682.05,681.15,0.25526296]
[1752563183506,0.98816384,682.11,681.15,0.25526296]
[1752563183701,0.98816384,681.88,681.15,0.25526296]
[1752563184102,0.98816384,681.87,681.15,0.25526296]
[1752563184401,0.25505156,682.67,681.15,0.25526296]
[1752563184402,0.98816384,681.94,681.15,0.25526296]
[1752563185304,0.98816384,681.97,681.15,0.25526296]
[1752563185604,1.1032971,681.96,681.15,0.25526296]
[1752563186006,1.1032971,681.95,681.15,0.25526296]
[1752563186206,1.1032971,681.94,681.15,0.25526296]
[1752563186407,1.1032971,681.93,681.15,0.25526296]
[1752563186606,1.1032971,681.92,681.15,0.25526296]
[1752563186807,1.1032971,681.91,681.15,0.25526296]
[1752563187007,1.1032971,681.9,681.15,0.25526296]
[1752563187204,1.1032971,681.89,681.15,0.25526296]
[1752563187504,1.1032971,681.88,681.15,0.25526296]
[1752563187708,1.1032971,681.87,681.15,0.25526296]
[1752563187908,1.1032971,681.86,681.15,0.25526296]
[1752563188106,1.1032971,681.85,681.15,0.25526296]
[1752563188309,1.1032971,681.84,681.15,0.25526296]
[1752563188505,1.1032971,681.83,681.15,0.25526296]
[1752563188710,1.1032971,681.82,681.15,0.25526296]
[1752563188907,0.98816384,681.98,681.15,0.25526296]
[1752563189206,1.1036924,681.97,681.15,0.25526296]
[1752563189710,0.98816384,681.93,681.15,0.25526296]
[1752563190010,1.1036924,681.92,681.15,0.25526296]
[1752563190210,1.1036924,681.91,681.15,0.25526296]
[1752563190407,1.1036924,681.9,681.15,0.25526296]
[1752563190606,1.1036924,681.89,681.15,0.25526296]
[1752563190805,1.1036924,681.88,681.15,0.25526296]
[1752563191009,1.1036924,681.87,681.15,0.25526296]
[1752563191310,1.1028538,681.86,681.15,0.25526296]
[1752563191508,1.1028538,681.85,681.15,0.25526296]
[1752563191806,1.1028538,681.84,681.15,0.25526296]
[1752563192107,1.1028538,681.83,681.15,0.25526296]
[1752563192310,1.1028538,681.82,681.15,0.25526296]
[1752563192506,1.1028538,681.81,681.15,0.25526296]
[1752563192709,1.1028538,681.8,681.15,0.25526296]
[1752563193006,1.1028538,681.79,681.15,0.25526296]
[1752563193209,1.1028538,681.78,681.15,0.25526296]
[1752563193411,0.98816384,681.89,681.15,0.25526296]
[1752563193608,1.3175517,682.04,681.15,0.25526296]
[1752563193609,1.1019364,681.88,681.15,0.25526296]
[1752563193806,1.1019364,681.87,681.15,0.25526296]
[1752563194006,1.1019364,681.86,681.15,0.25526296]
[1752563194206,1.1019364,681.85,681.15,0.25526296]
[1752563194413,1.1019364,681.84,681.15,0.25526296]
[1752563194610,1.1019364,681.83,681.15,0.25526296]
[1752563194909,1.1019364,681.82,681.15,0.25526296]
[1752563195108,1.1019364,681.81,681.15,0.25526296]
[1752563195411,1.1016544,681.8,681.15,0.25526296]
[1752563195611,1.1016544,681.79,681.15,0.25526296]
[1752563195811,0.98816384,681.91,681.15,0.25526296]
[1752563196112,1.1014625,681.9,681.15,0.25526296]
[1752563196509,0.98816384,681.89,681.15,0.25526296]
[1752563196710,1.1014625,681.88,681.15,0.25526296]
[1752563196910,1.1014625,681.87,681.15,0.25526296]
[1752563197110,1.1014625,681.86,681.15,0.25526296]
[1752563197314,1.1014625,681.85,681.15,0.25526296]
[1752563197510,1.1014625,681.84,681.15,0.25526296]
[1752563197711,1.1014625,681.83,681.15,0.25526296]
[1752563197910,1.1014625,681.82,681.15,0.25526296]
[1752563198116,0.98816384,681.95,681.15,0.25526296]
[1752563198315,1.1012454,681.94,681.15,0.25526296]
[1752563198816,0.98816384,681.95,681.15,0.25526296]
[1752563199116,1.1011067,681.94,681.15,0.25526296]
[1752563199613,1.1011067,681.93,681.15,0.25526296]
[1752563199818,1.1011067,681.92,681.15,0.25526296]
[1752563200012,1.1011067,681.91,681.15,0.25526296]
[1752563200213,1.1011067,681.9,681.15,0.25526296]
[1752563200413,1.1011067,681.89,681.15,0.25526296]
[1752563200616,1.1011067,681.88,681.15,0.25526296]
[1752563200813,1.1011067,681.87,681.15,0.25526296]
[1752563201014,0.98816384,682.02,681.15,0.25526296]
[1752563201214,1.1008749,682.01,681.15,0.25526296]
[1752563201414,1.1008749,682.0,681.15,0.25526296]
[1752563201717,1.1008749,681.99,681.15,0.25526296]
[1752563201911,1.1008749,681.98,681.15,0.25526296]
[1752563202114,1.1008749,681.97,681.15,0.25526296]
[1752563202314,1.1008749,681.96,681.15,0.25526296]
[1752563202512,0.98816384,682.07,681.15,0.25526296]
[1752563202513,1.1008749,681.95,681.15,0.25526296]
[1752563202818,1.1008749,681.94,681.15,0.25526296]
[1752563203118,1.1008749,681.93,681.15,0.25526296]
[1752563203315,1.1008749,681.92,681.15,0.25526296]
[1752563203616,1.1008749,681.91,681.15,0.25526296]
[1752563203814,1.1008749,681.9,681.15,0.25526296]
[1752563204013,1.1008749,681.89,681.15,0.25526296]
[1752563204217,1.1008749,681.88,681.15,0.25526296]
[1752563204514,1.1008749,681.87,681.15,0.25526296]
[1752563204713,0.98816384,682.05,681.15,0.25526296]
[1752563204714,1.1008749,681.86,681.15,0.25526296]
[1752563205013,1.1008749,681.85,681.15,0.25526296]
[1752563205215,1.1008749,681.84,681.15,0.25526296]
[1752563205416,1.1008749,681.83,681.15,0.25526296]
[1752563205618,0.98816384,682.05,681.15,0.25526296]
[1752563205919,1.1014027,682.04,681.15,0.25526296]
[1752563206218,1.1014027,682.03,681.15,0.25526296]
[1752563206419,1.1014027,682.02,681.15,0.25526296]
[1752563206718,1.1014027,682.01,681.15,0.25526296]
[1752563206919,1.1014027,682.03,681.15,0.25526296]
[1752563207219,1.1014884,682.02,681.15,0.25526296]
[1752563207515,1.1014884,682.01,681.15,0.25526296]
[1752563207718,1.1017487,682.0,681.15,0.25526296]
[1752563208020,0.98816384,682.05,681.15,0.25526296]
[1752563208224,1.1017487,682.04,681.15,0.25526296]
[1752563208418,2.08991254,682.04,681.15,0.25526296]
[1752563208621,1.1017487,682.03,681.15,0.25526296]
[1752563209417,0.98816384,681.99,681.15,0.25526296]
[1752563209617,1.1017487,681.98,681.15,0.25526296]
[1752563209817,1.1017487,681.97,681.15,0.25526296]
[1752563210024,1.1017487,681.96,681.15,0.25526296]
[1752563210218,1.1017487,681.95,681.15,0.25526296]
[1752563210418,1.1017487,681.94,681.15,0.25526296]
[1752563210621,1.3175517,682.13,681.15,0.25526296]
[1752563210622,1.102583,681.93,681.15,0.25526296]
[1752563210817,0.98816384,681.97,681.15,0.25526296]
[1752563211022,1.102583,681.96,681.15,0.25526296]